[Event "*** Titled Tuesday Blitz"]
[Site "Chess.com"]
[Date "2018.07.03"]
[Round "1"]
[White "jacky72"]
[Black "arctic_t00"]
[Result "1-0"]
[WhiteElo "2625"]
[BlackElo "2302"]
[TimeControl "180+2"]
[EndTime "13:01:46 PDT"]
[Termination "jacky72 won by resignation"]

1. d4 {[%clk 0:03:00.5]} 1... Nf6 {[%clk 0:03:00.4]} 2. c4 {[%clk 0:03:00.4]}
2... g6 {[%clk 0:03:01.8]} 3. Nc3 {[%clk 0:02:58.1]} 3... Bg7 {[%clk 0:03:02.5]}
4. e4 {[%clk 0:02:59.5]} 4... d6 {[%clk 0:03:03.7]} 5. Be2 {[%clk 0:03:00.7]}
5... O-O {[%clk 0:03:04.4]} 6. Bg5 {[%clk 0:03:02]} 6... c5 {[%clk 0:03:02]} 7.
d5 {[%clk 0:03:02]} 7... b5 {[%clk 0:03:01.4]} 8. cxb5 {[%clk 0:03:02.3]} 8...
a6 {[%clk 0:03:02.7]} 9. a4 {[%clk 0:02:54.7]} 9... Qa5 {[%clk 0:02:56.1]} 10.
Bd2 {[%clk 0:02:43]} 10... Nbd7 {[%clk 0:02:44.6]} 11. Nf3 {[%clk 0:02:43.3]}
11... Qxb5 {[%clk 0:02:29.4]} 12. axb5 {[%clk 0:02:43.1]} 1-0

[Event "*** Titled Tuesday Blitz"]
[Site "Chess.com"]
[Date "2018.07.03"]
[Round "1"]
[White "Mikhail_Golubev"]
[Black "platy3"]
[Result "0-1"]
[WhiteElo "2384"]
[BlackElo "2725"]
[TimeControl "180+2"]
[EndTime "13:02:24 PDT"]
[Termination "platy3 won by checkmate"]

1. e4 {[%clk 0:02:59.7]} 1... c5 {[%clk 0:03:00.8]} 2. Nf3 {[%clk 0:02:59.8]}
2... Nc6 {[%clk 0:03:02.1]} 3. Nc3 {[%clk 0:02:59]} 3... Nf6 {[%clk 0:03:01.9]}
4. Bb5 {[%clk 0:02:57.4]} 4... Nd4 {[%clk 0:03:01.6]} 5. e5 {[%clk 0:02:57.3]}
5... Nxb5 {[%clk 0:03:02.1]} 6. Nxb5 {[%clk 0:02:56.9]} 6... Nd5 {[%clk
0:03:03.3]} 7. Ng5 {[%clk 0:02:57.7]} 7... f6 {[%clk 0:02:55.2]} 8. exf6 {[%clk
0:02:44.3]} 8... Nxf6 {[%clk 0:02:54.3]} 9. O-O {[%clk 0:02:41.1]} 9... h6
{[%clk 0:02:48.4]} 10. Ne4 {[%clk 0:02:39.4]} 10... Qb6 {[%clk 0:02:40.1]} 11.
Nxf6+ {[%clk 0:02:39.4]} 11... gxf6 {[%clk 0:02:39.6]} 12. Qh5+ {[%clk
0:02:37.7]} 12... Kd8 {[%clk 0:02:40.8]} 13. c4 {[%clk 0:02:35.4]} 13... d6
{[%clk 0:02:37.9]} 14. a4 {[%clk 0:02:30.6]} 14... Bd7 {[%clk 0:02:29.8]} 15. a5
{[%clk 0:02:29.1]} 15... Qc6 {[%clk 0:02:30.3]} 16. Nc3 {[%clk 0:02:29.3]} 16...
Rg8 {[%clk 0:02:30.3]} 17. Qf7 {[%clk 0:02:27.1]} 17... Qxg2# {[%clk 0:02:30.1]}
0-1

[Event "*** Titled Tuesday Blitz"]
[Site "Chess.com"]
[Date "2018.07.03"]
[Round "1"]
[White "Rock700chess"]
[Black "Joel1285"]
[Result "1-0"]
[WhiteElo "2465"]
[BlackElo "1758"]
[TimeControl "180+2"]
[EndTime "13:02:51 PDT"]
[Termination "Rock700chess won by resignation"]

1. d4 {[%clk 0:02:53.7]} 1... Nf6 {[%clk 0:03:00.4]} 2. c4 {[%clk 0:02:55.1]}
2... e6 {[%clk 0:03:01.5]} 3. Nc3 {[%clk 0:02:56.3]} 3... Bb4 {[%clk 0:03:02.5]}
4. f3 {[%clk 0:02:57.8]} 4... d5 {[%clk 0:03:03]} 5. a3 {[%clk 0:02:58.9]} 5...
Bxc3+ {[%clk 0:03:03.8]} 6. bxc3 {[%clk 0:03:00.8]} 6... O-O {[%clk 0:03:04.8]}
7. cxd5 {[%clk 0:03:01.9]} 7... exd5 {[%clk 0:03:05.8]} 8. e3 {[%clk 0:03:03.1]}
8... b6 {[%clk 0:03:05.5]} 9. Bd3 {[%clk 0:03:04.4]} 9... Ba6 {[%clk 0:03:06.3]}
10. Ne2 {[%clk 0:03:05.9]} 10... Bxd3 {[%clk 0:03:06.4]} 11. Qxd3 {[%clk
0:03:07.8]} 11... Re8 {[%clk 0:03:06.3]} 12. O-O {[%clk 0:03:09.1]} 12... Qe7
{[%clk 0:03:06.4]} 13. Ng3 {[%clk 0:03:06.7]} 13... g6 {[%clk 0:03:06.8]} 14.
Ra2 {[%clk 0:03:04.8]} 14... Nbd7 {[%clk 0:03:05.7]} 15. Re2 {[%clk 0:03:05.3]}
15... Rad8 {[%clk 0:03:00.5]} 16. e4 {[%clk 0:03:06.5]} 16... dxe4 {[%clk
0:03:02.4]} 17. fxe4 {[%clk 0:03:07.8]} 17... c6 {[%clk 0:02:54.4]} 18. Bg5
{[%clk 0:02:50.6]} 18... Qe6 {[%clk 0:02:54.9]} 19. Qf3 {[%clk 0:02:49.6]} 19...
Qc4 {[%clk 0:02:04.1]} 20. Bxf6 {[%clk 0:02:45.4]} 20... Nxf6 {[%clk 0:02:04.6]}
21. Qxf6 {[%clk 0:02:47.3]} 1-0

[Event "*** Titled Tuesday Blitz"]
[Site "Chess.com"]
[Date "2018.07.03"]
[Round "1"]
[White "Robin-Side"]
[Black "Karina_Oparina"]
[Result "0-1"]
[WhiteElo "2492"]
[BlackElo "2218"]
[TimeControl "180+2"]
[EndTime "13:02:54 PDT"]
[Termination "Karina_Oparina won by resignation"]

1. e4 {[%clk 0:03:00.4]} 1... c6 {[%clk 0:02:59.9]} 2. Nf3 {[%clk 0:03:01]} 2...
d5 {[%clk 0:03:01.1]} 3. Nc3 {[%clk 0:03:02.5]} 3... Bg4 {[%clk 0:03:00.4]} 4.
h3 {[%clk 0:03:03]} 4... Bxf3 {[%clk 0:03:00.4]} 5. Qxf3 {[%clk 0:03:04.9]} 5...
e6 {[%clk 0:03:01.2]} 6. d3 {[%clk 0:03:06.2]} 6... Nf6 {[%clk 0:03:01.4]} 7. g4
{[%clk 0:03:03.7]} 7... Nbd7 {[%clk 0:03:02.2]} 8. g5 {[%clk 0:03:01.4]} 8...
Ng8 {[%clk 0:02:54]} 9. h4 {[%clk 0:03:01.8]} 9... Bb4 {[%clk 0:02:54.2]} 10.
Bd2 {[%clk 0:03:01.5]} 10... Ne7 {[%clk 0:02:54]} 11. O-O-O {[%clk 0:03:01.4]}
11... d4 {[%clk 0:02:50.7]} 12. Nb1 {[%clk 0:02:57.2]} 12... Qa5 {[%clk
0:02:45.7]} 13. a3 {[%clk 0:02:53.5]} 13... Bxd2+ {[%clk 0:02:44.9]} 14. Nxd2
{[%clk 0:02:55.4]} 14... Ne5 {[%clk 0:02:34]} 15. Qg3 {[%clk 0:02:52.1]} 15...
O-O-O {[%clk 0:02:33.5]} 16. Nb3 {[%clk 0:02:53.4]} 16... Qc7 {[%clk 0:02:31.3]}
17. Nxd4 {[%clk 0:02:52.9]} 17... Rxd4 {[%clk 0:02:31.1]} 18. c3 {[%clk
0:02:50.8]} 18... Rd7 {[%clk 0:02:28.7]} 19. d4 {[%clk 0:02:47.7]} 19... N5g6
{[%clk 0:02:29]} 20. e5 {[%clk 0:02:48.1]} 20... Nf5 {[%clk 0:02:26]} 21. Qg4
{[%clk 0:02:46.8]} 21... Rhd8 {[%clk 0:02:19.9]} 22. Bd3 {[%clk 0:02:38.7]}
22... Nxe5 {[%clk 0:02:18.9]} 0-1

[Event "*** Titled Tuesday Blitz"]
[Site "Chess.com"]
[Date "2018.07.03"]
[Round "1"]
[White "Gajuchess"]
[Black "saraswathii"]
[Result "1-0"]
[WhiteElo "2618"]
[BlackElo "2299"]
[TimeControl "180+2"]
[EndTime "13:03:48 PDT"]
[Termination "Gajuchess won by resignation"]

1. Nf3 {[%clk 0:03:00.6]} 1... Nc6 {[%clk 0:02:58.3]} 2. d4 {[%clk 0:03:01.5]}
2... d5 {[%clk 0:02:56.5]} 3. Bf4 {[%clk 0:03:02.7]} 3... Bf5 {[%clk 0:02:53]}
4. a3 {[%clk 0:03:01.8]} 4... e6 {[%clk 0:02:52.6]} 5. e3 {[%clk 0:03:03]} 5...
Bd6 {[%clk 0:02:52.5]} 6. Bg3 {[%clk 0:03:04.2]} 6... a6 {[%clk 0:02:49]} 7. c4
{[%clk 0:03:04.8]} 7... Nf6 {[%clk 0:02:47.7]} 8. Nc3 {[%clk 0:03:06.3]} 8...
Bxg3 {[%clk 0:02:40.7]} 9. hxg3 {[%clk 0:03:07.3]} 9... Qd7 {[%clk 0:02:41.4]}
10. Be2 {[%clk 0:03:02.2]} 10... O-O-O {[%clk 0:02:39.7]} 11. c5 {[%clk
0:02:52.8]} 11... Ne4 {[%clk 0:02:38.8]} 12. Qa4 {[%clk 0:02:35.2]} 12... e5
{[%clk 0:02:25.8]} 13. Bxa6 {[%clk 0:02:26.3]} 13... exd4 {[%clk 0:02:18.8]} 14.
Bb5 {[%clk 0:02:18.8]} 14... Qe6 {[%clk 0:02:10.1]} 15. Nxd4 {[%clk 0:02:18.4]}
15... Nxc5 {[%clk 0:01:47.4]} 16. Qa8+ {[%clk 0:02:08.9]} 16... Kd7 {[%clk
0:01:47.3]} 17. Nxe6 {[%clk 0:02:10.2]} 17... Rxa8 {[%clk 0:01:46.7]} 18. Nxc5+
{[%clk 0:02:11.2]} 1-0

[Event "*** Titled Tuesday Blitz"]
[Site "Chess.com"]
[Date "2018.07.03"]
[Round "1"]
[White "nurmiTV"]
[Black "Leo_C"]
[Result "1-0"]
[WhiteElo "2517"]
[BlackElo "2156"]
[TimeControl "180+2"]
[EndTime "13:03:52 PDT"]
[Termination "nurmiTV won by resignation"]

1. c4 {[%clk 0:02:57.4]} 1... e6 {[%clk 0:03:00.7]} 2. Nc3 {[%clk 0:02:58.4]}
2... d5 {[%clk 0:03:01.8]} 3. e3 {[%clk 0:02:59.8]} 3... Nf6 {[%clk 0:03:01.6]}
4. Nf3 {[%clk 0:03:00.9]} 4... c6 {[%clk 0:03:02.3]} 5. b3 {[%clk 0:03:01.8]}
5... Bd6 {[%clk 0:03:03.3]} 6. Bb2 {[%clk 0:03:02.7]} 6... O-O {[%clk
0:03:04.4]} 7. Be2 {[%clk 0:03:03]} 7... e5 {[%clk 0:03:05.6]} 8. d4 {[%clk
0:02:59.8]} 8... e4 {[%clk 0:03:05.5]} 9. Nd2 {[%clk 0:03:00.6]} 9... a6 {[%clk
0:03:03.8]} 10. O-O {[%clk 0:02:50.9]} 10... Re8 {[%clk 0:03:01]} 11. Qc1 {[%clk
0:02:37.3]} 11... Bf5 {[%clk 0:02:58]} 12. Ba3 {[%clk 0:02:37.3]} 12... Qe7
{[%clk 0:02:54.4]} 13. Bxd6 {[%clk 0:02:35.2]} 13... Qxd6 {[%clk 0:02:54.8]} 14.
h3 {[%clk 0:02:36.2]} 14... Nbd7 {[%clk 0:02:54.8]} 15. a4 {[%clk 0:02:27.5]}
15... Bg6 {[%clk 0:02:52.3]} 16. a5 {[%clk 0:02:16.9]} 16... Re6 {[%clk
0:02:40.7]} 17. Qa3 {[%clk 0:02:08.9]} 17... Ne8 {[%clk 0:02:30.9]} 18. Rfc1
{[%clk 0:01:50.4]} 18... f5 {[%clk 0:02:23.2]} 19. cxd5 {[%clk 0:01:22.9]} 19...
Qxd5 {[%clk 0:02:15.9]} 20. Nxd5 {[%clk 0:01:23.3]} 1-0

[Event "*** Titled Tuesday Blitz"]
[Site "Chess.com"]
[Date "2018.07.03"]
[Round "1"]
[White "ChessMavenYeti"]
[Black "canwedoit"]
[Result "0-1"]
[WhiteElo "2209"]
[BlackElo "2545"]
[TimeControl "180+2"]
[EndTime "13:04:05 PDT"]
[Termination "canwedoit won by checkmate"]

1. Nf3 {[%clk 0:02:59.9]} 1... d5 {[%clk 0:02:58.9]} 2. g3 {[%clk 0:03:00.8]}
2... Nf6 {[%clk 0:02:59.1]} 3. Bg2 {[%clk 0:03:02.2]} 3... Bg4 {[%clk
0:02:59.4]} 4. O-O {[%clk 0:03:03.5]} 4... c6 {[%clk 0:02:59.9]} 5. c4 {[%clk
0:03:04]} 5... e6 {[%clk 0:03:00.6]} 6. Qb3 {[%clk 0:03:03.9]} 6... Qb6 {[%clk
0:03:00.2]} 7. cxd5 {[%clk 0:03:04.4]} 7... exd5 {[%clk 0:03:01.2]} 8. Qc2
{[%clk 0:02:47.8]} 8... Nbd7 {[%clk 0:02:54.1]} 9. h3 {[%clk 0:02:48.6]} 9...
Bh5 {[%clk 0:02:53.8]} 10. d3 {[%clk 0:02:42.3]} 10... Bd6 {[%clk 0:02:51.1]}
11. Be3 {[%clk 0:02:39.7]} 11... Qd8 {[%clk 0:02:41.3]} 12. Nd4 {[%clk
0:02:35.3]} 12... Bg6 {[%clk 0:02:39.4]} 13. Nc3 {[%clk 0:02:23.5]} 13... O-O
{[%clk 0:02:39.1]} 14. Nf3 {[%clk 0:02:15.5]} 14... Re8 {[%clk 0:02:35.2]} 15.
Nh4 {[%clk 0:02:15.1]} 15... Bxg3 {[%clk 0:02:31.5]} 16. Nxg6 {[%clk 0:02:15.3]}
16... hxg6 {[%clk 0:02:33.4]} 17. Bxa7 {[%clk 0:02:11.8]} 17... Be5 {[%clk
0:02:21.9]} 18. Be3 {[%clk 0:02:11.4]} 18... d4 {[%clk 0:02:22.7]} 19. Bxd4
{[%clk 0:02:04.5]} 19... Bxd4 {[%clk 0:02:23.8]} 20. e3 {[%clk 0:02:06.4]} 20...
Bxc3 {[%clk 0:02:21.3]} 21. bxc3 {[%clk 0:02:08.3]} 21... Ra5 {[%clk 0:02:17.5]}
22. c4 {[%clk 0:02:06.8]} 22... Rg5 {[%clk 0:02:14.1]} 23. Kh1 {[%clk
0:02:08.2]} 23... Qc7 {[%clk 0:02:04.3]} 24. f4 {[%clk 0:02:09.2]} 24... Rh5
{[%clk 0:01:59.9]} 25. e4 {[%clk 0:02:09]} 25... g5 {[%clk 0:01:58.8]} 26. f5
{[%clk 0:01:58.6]} 26... Ng4 {[%clk 0:01:57.2]} 27. Qe2 {[%clk 0:01:56.7]} 27...
Qh2# {[%clk 0:01:57.5]} 0-1

[Event "*** Titled Tuesday Blitz"]
[Site "Chess.com"]
[Date "2018.07.03"]
[Round "1"]
[White "mukhin1"]
[Black "EndgameGrinder"]
[Result "1-0"]
[WhiteElo "2920"]
[BlackElo "2452"]
[TimeControl "180+2"]
[EndTime "13:04:22 PDT"]
[Termination "mukhin1 won by resignation"]

1. e4 {[%clk 0:02:51]} 1... c5 {[%clk 0:03:00.4]} 2. Nc3 {[%clk 0:02:48.2]} 2...
e6 {[%clk 0:03:00]} 3. Nf3 {[%clk 0:02:48.5]} 3... Nc6 {[%clk 0:03:00.7]} 4. d4
{[%clk 0:02:50.4]} 4... cxd4 {[%clk 0:03:01.9]} 5. Nxd4 {[%clk 0:02:52.3]} 5...
Qc7 {[%clk 0:03:03.2]} 6. g3 {[%clk 0:02:50.3]} 6... a6 {[%clk 0:03:04.1]} 7.
Bg2 {[%clk 0:02:51]} 7... Nf6 {[%clk 0:03:05.4]} 8. O-O {[%clk 0:02:49.4]} 8...
Nxd4 {[%clk 0:03:05.9]} 9. Qxd4 {[%clk 0:02:50.4]} 9... Bc5 {[%clk 0:03:07.5]}
10. Bf4 {[%clk 0:02:46.5]} 10... d6 {[%clk 0:03:08.2]} 11. Qd2 {[%clk 0:02:47]}
11... h6 {[%clk 0:03:08.6]} 12. Rad1 {[%clk 0:02:43.8]} 12... e5 {[%clk
0:03:10]} 13. Be3 {[%clk 0:02:45.4]} 13... Be6 {[%clk 0:03:11.4]} 14. Rfe1
{[%clk 0:02:41.9]} 14... O-O {[%clk 0:02:51.2]} 15. Bxc5 {[%clk 0:02:37.9]}
15... dxc5 {[%clk 0:02:52.4]} 16. Qd6 {[%clk 0:02:39.4]} 16... Rac8 {[%clk
0:02:40.8]} 17. a4 {[%clk 0:02:29.8]} 17... Qxd6 {[%clk 0:01:56]} 18. Rxd6
{[%clk 0:02:31.7]} 18... Rfd8 {[%clk 0:01:57.6]} 19. Red1 {[%clk 0:02:29.3]}
19... Rd7 {[%clk 0:01:49.5]} 20. Rxd7 {[%clk 0:02:22.8]} 20... Nxd7 {[%clk
0:01:51.4]} 21. a5 {[%clk 0:02:24.7]} 21... Kf8 {[%clk 0:01:50.3]} 22. f4 {[%clk
0:02:22.6]} 22... f6 {[%clk 0:01:49.1]} 23. f5 {[%clk 0:02:23.2]} 23... Ke7
{[%clk 0:01:30.8]} 24. fxe6 {[%clk 0:02:03.7]} 24... Kxe6 {[%clk 0:01:32.7]} 25.
Bh3+ {[%clk 0:02:04.7]} 1-0

[Event "*** Titled Tuesday Blitz"]
[Site "Chess.com"]
[Date "2018.07.03"]
[Round "1"]
[White "26andrej26"]
[Black "dretch"]
[Result "0-1"]
[WhiteElo "2405"]
[BlackElo "2749"]
[TimeControl "180+2"]
[EndTime "13:04:48 PDT"]
[Termination "dretch won by resignation"]

1. e4 {[%clk 0:03:01.9]} 1... e6 {[%clk 0:02:59.1]} 2. d4 {[%clk 0:03:02.5]}
2... d5 {[%clk 0:03:00.3]} 3. Nc3 {[%clk 0:03:03.8]} 3... Nf6 {[%clk 0:03:00.3]}
4. e5 {[%clk 0:03:04.9]} 4... Nfd7 {[%clk 0:03:01.7]} 5. f4 {[%clk 0:03:06.5]}
5... c5 {[%clk 0:03:03.3]} 6. Nf3 {[%clk 0:03:08.2]} 6... Nc6 {[%clk 0:03:04.9]}
7. Be3 {[%clk 0:03:09.3]} 7... cxd4 {[%clk 0:03:06.4]} 8. Nxd4 {[%clk 0:03:11]}
8... Bc5 {[%clk 0:03:08.1]} 9. Qd2 {[%clk 0:03:11.9]} 9... O-O {[%clk
0:03:09.7]} 10. O-O-O {[%clk 0:03:13]} 10... a6 {[%clk 0:03:11.2]} 11. Qf2
{[%clk 0:03:14.2]} 11... Bxd4 {[%clk 0:03:12.2]} 12. Bxd4 {[%clk 0:03:16.1]}
12... b5 {[%clk 0:03:13.1]} 13. Bd3 {[%clk 0:03:15.6]} 13... b4 {[%clk
0:03:12.9]} 14. Ne2 {[%clk 0:02:57.2]} 14... a5 {[%clk 0:03:13.6]} 15. Bb5
{[%clk 0:02:53.7]} 15... Qc7 {[%clk 0:03:11]} 16. h4 {[%clk 0:02:52.3]} 16...
Ba6 {[%clk 0:03:11.8]} 17. Ba4 {[%clk 0:02:52.3]} 17... Rfc8 {[%clk 0:02:53]}
18. h5 {[%clk 0:02:43.4]} 18... Bxe2 {[%clk 0:02:26.1]} 19. Qxe2 {[%clk
0:02:42.7]} 19... Nxd4 {[%clk 0:02:26.7]} 20. Rxd4 {[%clk 0:02:44.6]} 20... Nc5
{[%clk 0:02:26.1]} 21. Bb5 {[%clk 0:02:26.5]} 21... b3 {[%clk 0:02:26.7]} 22.
Kb1 {[%clk 0:02:14.5]} 22... bxa2+ {[%clk 0:02:01.6]} 23. Kxa2 {[%clk
0:02:07.6]} 23... Qb6 {[%clk 0:02:00.2]} 24. Ba4 {[%clk 0:01:57.4]} 24... Rab8
{[%clk 0:01:58]} 25. b3 {[%clk 0:01:36.5]} 25... Nxb3 {[%clk 0:01:52.5]} 26.
cxb3 {[%clk 0:01:23.6]} 26... Qxd4 {[%clk 0:01:52.9]} 27. Rd1 {[%clk 0:01:20.2]}
27... Qxf4 {[%clk 0:01:53.6]} 0-1

[Event "*** Titled Tuesday Blitz"]
[Site "Chess.com"]
[Date "2018.07.03"]
[Round "1"]
[White "champ2005"]
[Black "oskariot"]
[Result "1-0"]
[WhiteElo "2706"]
[BlackElo "2377"]
[TimeControl "180+2"]
[EndTime "13:05:32 PDT"]
[Termination "champ2005 won by resignation"]

1. e4 {[%clk 0:02:57.5]} 1... d6 {[%clk 0:02:58.8]} 2. d4 {[%clk 0:02:58.1]}
2... Nf6 {[%clk 0:02:58.2]} 3. Nc3 {[%clk 0:02:59.1]} 3... g6 {[%clk 0:02:59.1]}
4. f4 {[%clk 0:02:58.7]} 4... Bg7 {[%clk 0:03:00]} 5. Nf3 {[%clk 0:02:59.2]}
5... c5 {[%clk 0:03:01.6]} 6. d5 {[%clk 0:02:59.1]} 6... O-O {[%clk 0:03:01.2]}
7. Be2 {[%clk 0:02:59.1]} 7... b5 {[%clk 0:02:44]} 8. e5 {[%clk 0:02:38.6]} 8...
dxe5 {[%clk 0:02:23.3]} 9. fxe5 {[%clk 0:02:39.3]} 9... Ng4 {[%clk 0:02:24.3]}
10. Bxb5 {[%clk 0:02:39.2]} 10... Nxe5 {[%clk 0:02:13.5]} 11. Nxe5 {[%clk
0:02:37.9]} 11... Bxe5 {[%clk 0:02:15.4]} 12. O-O {[%clk 0:02:38.2]} 12... Qc7
{[%clk 0:02:04.8]} 13. h3 {[%clk 0:02:29.6]} 13... Bd7 {[%clk 0:01:47.8]} 14.
Bxd7 {[%clk 0:02:26.4]} 14... Nxd7 {[%clk 0:01:47.1]} 15. Bh6 {[%clk 0:02:27.1]}
15... Rfe8 {[%clk 0:01:28.8]} 16. Qf3 {[%clk 0:02:27.2]} 16... Nf6 {[%clk
0:01:05.8]} 17. Rad1 {[%clk 0:02:26.5]} 17... Rad8 {[%clk 0:00:58.9]} 18. g4
{[%clk 0:02:08.9]} 18... Bd4+ {[%clk 0:00:58.2]} 19. Kg2 {[%clk 0:02:09.9]}
19... e6 {[%clk 0:00:57.8]} 20. Nb5 {[%clk 0:02:01.2]} 20... Qb6 {[%clk
0:00:24.7]} 21. Nxd4 {[%clk 0:01:57.1]} 21... exd5 {[%clk 0:00:26.1]} 22. Qxf6
{[%clk 0:01:54.2]} 22... Qxf6 {[%clk 0:00:28]} 23. Rxf6 {[%clk 0:01:55.8]} 23...
cxd4 {[%clk 0:00:29.9]} 24. Rxd4 {[%clk 0:01:56.5]} 1-0

[Event "*** Titled Tuesday Blitz"]
[Site "Chess.com"]
[Date "2018.07.03"]
[Round "1"]
[White "timator"]
[Black "MITerryble"]
[Result "0-1"]
[WhiteElo "2335"]
[BlackElo "2674"]
[TimeControl "180+2"]
[EndTime "13:05:52 PDT"]
[Termination "MITerryble won by resignation"]

1. Nf3 {[%clk 0:02:52.5]} 1... Nf6 {[%clk 0:02:58.3]} 2. g3 {[%clk 0:02:38.9]}
2... d5 {[%clk 0:02:58.1]} 3. Bg2 {[%clk 0:02:32.2]} 3... c6 {[%clk 0:02:59.1]}
4. O-O {[%clk 0:02:34.1]} 4... Bg4 {[%clk 0:02:59.8]} 5. d4 {[%clk 0:02:30.4]}
5... Nbd7 {[%clk 0:03:00.7]} 6. h3 {[%clk 0:02:28]} 6... Bh5 {[%clk 0:03:00.8]}
7. c3 {[%clk 0:02:17.2]} 7... e6 {[%clk 0:03:01.3]} 8. Bf4 {[%clk 0:02:16]} 8...
Qb6 {[%clk 0:03:01.3]} 9. Qb3 {[%clk 0:02:08.9]} 9... Be7 {[%clk 0:03:02.1]} 10.
Nbd2 {[%clk 0:02:08.2]} 10... O-O {[%clk 0:03:02.5]} 11. Rfe1 {[%clk 0:02:08]}
11... c5 {[%clk 0:02:51.2]} 12. e3 {[%clk 0:02:00.2]} 12... h6 {[%clk
0:02:46.2]} 13. g4 {[%clk 0:01:59.9]} 13... Bg6 {[%clk 0:02:46.8]} 14. Ne5
{[%clk 0:01:50.5]} 14... Nxe5 {[%clk 0:02:37.3]} 15. Bxe5 {[%clk 0:01:46.9]}
15... Nd7 {[%clk 0:02:37]} 16. Bg3 {[%clk 0:01:47.6]} 16... Rac8 {[%clk
0:02:34.4]} 17. Qxb6 {[%clk 0:01:47]} 17... Nxb6 {[%clk 0:02:34.3]} 18. Rac1
{[%clk 0:01:47.6]} 18... Na4 {[%clk 0:02:06.9]} 19. b3 {[%clk 0:01:44.7]} 19...
Nb2 {[%clk 0:02:07.4]} 20. Bf1 {[%clk 0:01:42]} 20... Nd3 {[%clk 0:02:06.2]} 21.
Bxd3 {[%clk 0:01:42.2]} 21... Bxd3 {[%clk 0:02:08.1]} 22. dxc5 {[%clk
0:01:39.2]} 22... Bxc5 {[%clk 0:02:06.8]} 23. b4 {[%clk 0:01:40.8]} 23... Be7
{[%clk 0:02:05.6]} 24. Nb3 {[%clk 0:01:41.7]} 24... b6 {[%clk 0:02:00.5]} 25.
Nd4 {[%clk 0:01:38.5]} 25... Rc4 {[%clk 0:01:50.4]} 26. Red1 {[%clk 0:01:26.3]}
26... Bg6 {[%clk 0:01:50.7]} 27. Nb5 {[%clk 0:01:25.4]} 27... a6 {[%clk
0:01:49]} 28. Na3 {[%clk 0:00:50]} 28... Rc6 {[%clk 0:01:46.5]} 29. f3 {[%clk
0:00:42]} 29... Rfc8 {[%clk 0:01:45.7]} 30. Be1 {[%clk 0:00:42.9]} 30... Bxb4
{[%clk 0:01:45.1]} 0-1

[Event "*** Titled Tuesday Blitz"]
[Site "Chess.com"]
[Date "2018.07.03"]
[Round "1"]
[White "simplerXiao"]
[Black "VovenRogel"]
[Result "0-1"]
[WhiteElo "2368"]
[BlackElo "2697"]
[TimeControl "180+2"]
[EndTime "13:06:04 PDT"]
[Termination "VovenRogel won by resignation"]

1. e4 {[%clk 0:02:21.9]} 1... e5 {[%clk 0:02:59.4]} 2. Nc3 {[%clk 0:02:18.9]}
2... Nc6 {[%clk 0:02:59.6]} 3. g3 {[%clk 0:02:19.1]} 3... Nf6 {[%clk 0:02:59.4]}
4. Bg2 {[%clk 0:02:20.1]} 4... Bc5 {[%clk 0:02:58.9]} 5. Nge2 {[%clk 0:02:20.9]}
5... O-O {[%clk 0:02:59.3]} 6. O-O {[%clk 0:02:21]} 6... a6 {[%clk 0:02:57]} 7.
d3 {[%clk 0:02:18.2]} 7... d6 {[%clk 0:02:56.7]} 8. Bg5 {[%clk 0:02:18.3]} 8...
h6 {[%clk 0:02:55.9]} 9. Be3 {[%clk 0:02:05.2]} 9... Bxe3 {[%clk 0:02:47.7]} 10.
fxe3 {[%clk 0:02:06]} 10... Ng4 {[%clk 0:02:39.3]} 11. Qd2 {[%clk 0:02:06.5]}
11... Be6 {[%clk 0:02:17.4]} 12. Rae1 {[%clk 0:02:00]} 12... Qg5 {[%clk
0:02:15.9]} 13. Nd5 {[%clk 0:01:52.8]} 13... Bxd5 {[%clk 0:02:13.1]} 14. exd5
{[%clk 0:01:53.2]} 14... Ne7 {[%clk 0:02:11.2]} 15. Nc3 {[%clk 0:01:50.8]} 15...
f5 {[%clk 0:02:11.3]} 16. Qe2 {[%clk 0:01:43.5]} 16... Ng6 {[%clk 0:02:02.6]}
17. Bh3 {[%clk 0:01:27.6]} 17... h5 {[%clk 0:02:01.8]} 18. Bg2 {[%clk
0:01:05.1]} 18... h4 {[%clk 0:01:59.9]} 19. Qf3 {[%clk 0:00:58.4]} 19... Rae8
{[%clk 0:01:56.2]} 20. e4 {[%clk 0:00:27]} 20... f4 {[%clk 0:01:55.1]} 21. h3
{[%clk 0:00:23.9]} 21... Ne3 {[%clk 0:01:50.9]} 22. g4 {[%clk 0:00:20.8]} 22...
Nxc2 {[%clk 0:01:45.3]} 23. Rc1 {[%clk 0:00:20.5]} 23... Nd4 {[%clk 0:01:46.3]}
24. Qf2 {[%clk 0:00:21.8]} 24... f3 {[%clk 0:01:47.5]} 25. Bh1 {[%clk 0:00:23]}
25... Nf4 {[%clk 0:01:48.3]} 26. Qh2 {[%clk 0:00:23.5]} 26... Nfe2+ {[%clk
0:01:47.8]} 27. Kf2 {[%clk 0:00:23.4]} 27... Nxc1 {[%clk 0:01:48.3]} 0-1